lending/lending_fUSD_20260204
["ID","MTS","AMOUNT","RATE_DAILY","PERIOD"]
[404496182,1770217846783,-500.0,0.00017918,2]
[404496184,1770217846792,-150.0,0.00017918,2]
[404496186,1770217846802,-150.0,0.00017918,2]
[404496188,1770217846811,-332.0,0.00017918,2]
[404496189,1770217846820,-500.0,0.0001797,2]
[404496191,1770217846829,-500.0,0.0001797,2]
[404496192,1770217846839,-605.94629065,0.0001797,2]
[404496193,1770217846848,-300.0,0.00017972,2]
[404496194,1770217846858,-418.0,0.00017972,2]
[404496196,1770217846868,-954.0,0.00017973,2]
[404496198,1770217846878,-276.31975293,0.00017973,2]
[404496200,1770217846888,-500.0,0.00017973,2]
[404496201,1770217846898,-500.0,0.00017973,2]
[404496202,1770217846907,-500.0,0.00017973,2]
[404496203,1770217846919,-500.0,0.00017973,2]
[404496204,1770217846928,-265.80159927,0.00017973,2]
[404496205,1770217846938,-501.94112039,0.00017973,2]
[404496206,1770217846947,-500.0,0.00017973,2]
[404496207,1770217846957,-500.0,0.00017973,2]
[404496208,1770217846967,-500.0,0.00017973,2]
[404496209,1770217846977,-500.0,0.00017973,2]
[404496210,1770217846987,-500.0,0.00017973,2]
[404496211,1770217846996,-500.0,0.00017973,2]
[404496212,1770217847005,-500.0,0.00017973,2]
[404496213,1770217847015,-500.0,0.00017973,2]
[404496220,1770217847025,-500.0,0.00017973,2]
[404496221,1770217847259,-500.0,0.00017973,2]
[404496222,1770217847268,-500.0,0.00017973,2]
[404496223,1770217847278,-500.0,0.00017973,2]
[404496224,1770217847287,-500.0,0.00017973,2]
[404496225,1770217847296,-307.55618311,0.00017973,2]
[404496226,1770217847306,-500.0,0.00017973,2]
[404496227,1770217847317,-500.0,0.00017973,2]
[404496228,1770217847327,-500.0,0.00017973,2]
[404496229,1770217847336,-500.0,0.00017973,2]
[404496230,1770217847345,-500.0,0.00017973,2]
[404496231,1770217847355,-500.0,0.00017973,2]
[404496232,1770217847364,-586.65144912,0.00017973,2]
[404496233,1770217847376,-614.17494655,0.00017973,2]
[404496234,1770217847390,-182.58679094,0.00017973,2]
[404496235,1770217847400,-500.0,0.00017973,2]
[404496236,1770217847410,-394.5857052,0.00017973,2]
[404496237,1770217847419,-500.0,0.00017973,2]
[404496238,1770217847428,-500.0,0.00017973,2]
[404496239,1770217847437,-500.0,0.00017973,2]
[404496240,1770217847447,-500.0,0.00017973,2]
[404496241,1770217847456,-160.33173272,0.00017973,2]
[404496242,1770217847466,-161.60459995,0.00017973,2]
[404496243,1770217847475,-162.04614127,0.00017973,2]
[404496244,1770217847484,-333.79718187,0.00017973,2]
[404496245,1770217847493,-500.0,0.00017973,2]
[404496246,1770217847503,-500.0,0.00017973,2]
[404496247,1770217847512,-500.0,0.00017973,2]
[404496248,1770217847521,-500.0,0.00017973,2]
[404496249,1770217847530,-208.5086196,0.00017973,2]
[404496250,1770217847539,-500.0,0.00017973,2]
[404496251,1770217847549,-500.0,0.00017973,2]
[404496252,1770217847558,-500.0,0.00017973,2]
[404496253,1770217847567,-433.25562168,0.00017973,2]
[404496254,1770217847577,-500.0,0.00017973,2]
[404496255,1770217847586,-500.0,0.00017973,2]
[404496256,1770217847596,-500.0,0.00017973,2]
[404496257,1770217847605,-500.0,0.00017973,2]
[404496258,1770217847614,-500.69708247,0.00017973,2]
[404496259,1770217847627,-500.0,0.00017973,2]
[404496260,1770217847637,-500.93423808,0.00017973,2]
[404496261,1770217847647,-500.0,0.00017973,2]
[404496262,1770217847656,-500.0,0.00017973,2]
[404496263,1770217847666,-292.28447757,0.00017973,2]
[404496264,1770217847675,-500.0,0.00017973,2]
[404496265,1770217847685,-500.0,0.00017973,2]
[404496266,1770217847695,-500.0,0.00017973,2]
[404496267,1770217847704,-500.0,0.00017973,2]
[404496268,1770217847713,-500.0,0.00017973,2]
[404496269,1770217847724,-500.0,0.00017973,2]
[404496270,1770217847734,-500.0,0.00017973,2]
[404496271,1770217847743,-500.0,0.00017973,2]
[404496272,1770217847753,-500.0,0.00017973,2]
[404496273,1770217847766,-500.8383319,0.00017973,2]
[404496274,1770217847776,-1475.0,0.00017973,2]
[404496275,1770217847786,-250.0,0.00017973,2]
[404496276,1770217847795,-2685.0,0.00017973,2]
[404496277,1770217847804,-500.0,0.00017973,2]
[404496278,1770217847815,-500.0,0.00017973,2]
[404496279,1770217847824,-500.0,0.00017973,2]
[404496280,1770217847834,-359.16308256,0.00017973,2]
[404496281,1770217847844,-250.0,0.00017973,2]
[404496282,1770217847854,-194.5945355,0.00017973,2]
[404496283,1770217847863,-20000.0,0.00017973,2]
[404496284,1770217847874,-370.91655145,0.00017973,2]
[404496285,1770217847883,-500.0,0.00017973,2]
[404496286,1770217847893,-150.0,0.00017973,2]
[404496287,1770217847903,-651.342,0.00017986,2]
[404496288,1770217847914,-1000.0,0.00017986,2]
[404496289,1770217847924,-1000.0,0.00017986,2]
[404496290,1770217847934,-1000.0,0.00017986,2]
[404496291,1770217847944,-1000.0,0.00017986,2]
[404496292,1770217847953,-1000.0,0.00017986,2]
[404496293,1770217847967,-1000.0,0.00017986,2]
[404496294,1770217847977,-1000.0,0.00017986,2]
[404496295,1770217847986,-1000.0,0.00017986,2]
[404496296,1770217847996,-1000.0,0.00017986,2]
[404496297,1770217848006,-1000.0,0.00017986,2]
[404496298,1770217848016,-463.60371752,0.0001799,2]
[404496299,1770217848026,-463.60371752,0.0001799,2]
[404496300,1770217848036,-5800.0,0.0001799,2]
[404496301,1770217848046,-151.0,0.00017997,2]
[404496302,1770217848057,-150.0,0.00017999,2]
[404496303,1770217848067,-150.0,0.00017999,2]
[404496304,1770217848077,-150.0,0.00017999,2]
[404496305,1770217848088,-150.0,0.00017999,2]
[404496306,1770217848098,-158.42974867,0.00017999,2]
[404496307,1770217848108,-4073.69111168,0.00017999,2]
[404496308,1770217848118,-300.0,0.00017999,2]
[404496309,1770217848129,-300.0,0.00017999,2]
[404496310,1770217848140,-300.0,0.00017999,2]
[404496311,1770217848150,-666.0,0.00017999,2]
[404496312,1770217848164,-300.0,0.00017999,2]
[404496313,1770217848174,-2155744.17013241,0.00018,2]
[404496314,1770217849016,-713.87629375,0.00011237,2]
[404496315,1770217849093,-286.12370625,0.00011237,2]
[404496316,1770217849103,-1000.0,0.00012641,2]
[404496317,1770217849114,-1000.0,0.00014046,2]
[404496318,1770217849127,-257.64290776,0.0001545,2]
[404496319,1770217849142,-742.35709224,0.0001545,2]
[404496320,1770217849153,-1809.64290775,0.00016567,2]
[404496321,1770217849169,-7860.0,0.00016567,2]
[404496322,1770217849183,-5480.62998599,0.00016567,2]
[404496323,1770217849195,-12455.06136188,0.00016567,2]
[404496324,1770217849206,-1000.0,0.00016855,2]
[404496325,1770217849215,-160.0,0.00017,7]
[404496326,1770217849225,-1330.04455101,0.00017668,2]
[404496327,1770217849234,-7359.78577949,0.00018,2]
[404496328,1770217849246,-311.28919994,0.00018,2]
[404496329,1770217849276,-270.525,0.00018,2]
[404496330,1770217849288,-1168.9664,0.00018,2]
[404496331,1770217849299,-1599.9309531,0.00018,2]
[404496332,1770217849310,-530.90610322,0.00018,2]
[404496333,1770217849325,-375.057,0.00018,2]
[404496334,1770217849337,-2145.98214064,0.00018,2]
[404496335,1770217849348,-1257.08771891,0.00018,2]
[404496336,1770217849421,-715.0,0.00013861,2]
[404496337,1770217849430,-357.19,0.00014769,2]
[404496338,1770217849440,-1330.04455101,0.000179,2]
[404496339,1770217849449,-3407.08124956,0.00018,2]
[404496340,1770217849460,-387.4956,0.00018,2]
[404496398,1770219031739,-317.82726118,0.00010979,2]
[404496399,1770219031749,-818.0,0.00010999,2]
[404496400,1770219031759,-164.04316155,0.00011,2]
[404496401,1770219031770,-970.02307038,0.00011,2]
[404496402,1770219031821,-5775.7447491,0.00011,2]
[404496403,1770219031833,-1297.50843092,0.00011,2]
[404496404,1770219031843,-1000.0,0.0001162,2]
[404496405,1770219031853,-250.0,0.00012077,2]
[404496406,1770219031863,-250.0,0.00012077,2]
[404496407,1770219031872,-250.0,0.00012077,2]
[404496408,1770219031881,-476.40318991,0.000121,2]
[404496409,1770219031891,-8348.92850017,0.0001269,2]
[404496410,1770219031902,-1010.25987559,0.0001269,2]
[404496411,1770219031914,-580.8626698,0.0001269,2]
[404496412,1770219031923,-3240.0,0.00013425,2]
[404496413,1770219031937,-502.21542978,0.00013698,2]
[404496414,1770219031946,-500.0,0.00013698,2]
[404496415,1770219031956,-500.0,0.00013698,2]
[404496416,1770219031965,-434.3073799,0.00013698,2]
[404496417,1770219031993,-65.6926201,0.00013698,2]
[404496418,1770219032003,-200.0,0.00013699,2]
[404496419,1770219032015,-153.32,0.00013748,2]
[404496420,1770219032025,-187.97,0.00014082,2]
[404496421,1770219032034,-41.56393626,0.00014228,2]
[404496422,1770219032046,-507.51949708,0.00014228,2]
[404496423,1770219032058,-1093.02365196,0.00014228,2]
[404496424,1770219032077,-857.8929147,0.00014228,2]
[404496425,1770219032086,-150.0,0.00014255,2]
[404496426,1770219032095,-1014.95431346,0.00014256,2]
[404496448,1770219037836,-1837.56,0.00014256,2]
[404496449,1770219037848,-2668.5525377,0.00014256,2]
[404496450,1770219037858,-684.67963458,0.00014256,2]
[404496451,1770219037867,-1930.51744453,0.00014256,2]
[404496452,1770219037877,-4198.00845885,0.00014256,2]
[404496453,1770219037886,-320.3714743,0.00014256,2]
[404496454,1770219037896,-3435.5308692,0.00014256,2]
[404496455,1770219037905,-2183.06816,0.00014256,2]
[404496456,1770219037914,-500.0,0.00014301,2]
[404496457,1770219037923,-150.0,0.00014301,2]
[404496458,1770219037935,-463.60371752,0.00014318,2]
[404496459,1770219037946,-151.0,0.00014319,2]
[404496460,1770219037955,-151.0,0.00014319,2]
[404496461,1770219037965,-151.0,0.00014319,2]
[404496462,1770219037975,-151.0,0.00014319,2]
[404496463,1770219037984,-151.0,0.00014319,2]
[404496464,1770219037993,-151.0,0.00014325,2]
[404496465,1770219038003,-151.0,0.00014325,2]
[404496466,1770219038012,-151.0,0.00014325,2]
[404496467,1770219038021,-253.34317872,0.00014327,2]
[404496468,1770219038031,-184.72884001,0.00014327,2]
[404496469,1770219038040,-537.99575185,0.00014327,2]
[404496470,1770219038050,-500.0,0.00014327,2]
[404496471,1770219038059,-500.0,0.00014327,2]
[404496472,1770219038068,-184.12380234,0.00014327,2]
[404496473,1770219038116,-304.51318463,0.00014327,2]
[404496474,1770219038125,-1417.88681537,0.00014328,2]
[404496475,1770219038136,-469.88335522,0.00014328,2]
[404496476,1770219038146,-1616.70345335,0.00014328,2]
[404496479,1770219039944,-4050.0,0.00014328,2]
[404496480,1770219040016,-329.39965405,0.00014328,2]
[404496481,1770219040028,-313.80824392,0.00014328,2]
[404496482,1770219040039,-437.7024,0.00014328,2]
[404496483,1770219040051,-2433448.93108598,0.00014328,2]
[404496484,1770219040228,-1516.70478207,0.00014328,2]
[404496485,1770219040239,-539.63574858,0.00014328,2]
[404496486,1770219040250,-24104.6103854,0.00014328,2]
[404496487,1770219040262,-27108.1994862,0.00014328,2]
[404496506,1770219043836,-1000.93599101,0.00014328,2]
[404496507,1770219043850,-764.66212101,0.00014328,2]
[404496513,1770219044939,-15074.92889013,0.00014328,2]
[404496514,1770219044951,-567.35653655,0.00014328,2]
[404496523,1770219045968,-1824.3718734,0.00014328,2]
[404496524,1770219046144,-6685.891678,0.00014328,2]
[404496527,1770219046156,-905.53830495,0.00014328,2]
[404496528,1770219046167,-56100.0,0.00014328,2]
[404496529,1770219046179,-6081.20371361,0.00014328,2]
[404496530,1770219046209,-938.57415772,0.00014328,2]
[404496587,1770220231951,-405.05,0.00011441,2]
[404496588,1770220231967,-140.742757,0.00011441,2]
[404496589,1770220231976,-300.0,0.00011499,2]
[404496590,1770220231986,-1200.0,0.00011527,2]
[404496591,1770220231995,-86.66086659,0.00011528,2]
[404496592,1770220232007,-8810.57129373,0.00011528,2]
[404496593,1770220232019,-3993.38843968,0.00011528,2]
[404496594,1770220232029,-2500.0,0.00011528,2]
[404496595,1770220232038,-160.32704843,0.0001154,2]
[404496596,1770220232048,-213.58098286,0.0001154,2]
[404496597,1770220232058,-3070.86359599,0.00011541,2]
[404496598,1770220232067,-166.66,0.0001155,2]
[404496599,1770220232076,-500.0,0.00011601,2]
[404496600,1770220232086,-150.0,0.00011601,2]
[404496601,1770220232095,-359.20137218,0.00011618,2]
[404496602,1770220232104,-151.0,0.00011625,2]
[404496603,1770220232114,-543.73414316,0.00011627,2]
[404496604,1770220232123,-204.91953757,0.00011627,2]
[404496605,1770220232132,-285.91587313,0.00011627,2]
[404496606,1770220232141,-208.47969087,0.00011627,2]
[404496607,1770220232151,-187.42077116,0.00011627,2]
[404496608,1770220232160,-159.15851105,0.00011627,2]
[404496609,1770220232169,-165.40410966,0.00011627,2]
[404496610,1770220232178,-150.0,0.00011627,2]
[404496611,1770220232187,-22344.09971945,0.00011628,2]
[404496612,1770220232227,-2983.08,0.00011628,2]
[404496613,1770220232239,-754.66632813,0.00011628,2]
[404496615,1770220232250,-932.31905122,0.00011628,2]
[404496618,1770220232262,-400.99999999,0.00011628,2]
[404496621,1770220232273,-3296.20067443,0.00011628,2]
[404496848,1770220238222,-1455.37877334,0.00011541,2]
[404496849,1770220238232,-3448.62122666,0.00011628,2]
[404496850,1770220238243,-379.93300072,0.00011628,2]
[404496851,1770220238254,-74000.00000012,0.00011628,2]
[404496852,1770220238265,-601.30265064,0.00011628,2]
[404496853,1770220238276,-3149.61201621,0.00011628,2]
[404496854,1770220238289,-615.21547425,0.00011628,2]
[404496881,1770220240158,-3387093.94985818,0.00011628,2]
[404496883,1770220240170,-3614.76504732,0.00011641,2]
[404496885,1770220240180,-16585.2596324,0.00011641,2]
[404496887,1770220240190,-500.0,0.00011656,2]
[404496889,1770220240200,-1559.11,0.00011688,2]
[404496890,1770220240210,-500.0,0.00011711,2]
[404496893,1770220240220,-550.0,0.00011765,2]
[404496894,1770220240230,-166.66,0.00011794,2]
[404496896,1770220240239,-166.66,0.00011818,2]
[404496899,1770220240250,-500.0,0.00011893,2]
[404496901,1770220240260,-500.0,0.00011893,2]
[404496903,1770220240271,-208.5789033,0.00011893,2]
[404496905,1770220240281,-1593.401,0.00011899,2]
[404496907,1770220240291,-163.944,0.00011899,2]
[404496909,1770220240301,-10000.0,0.000119,2]
[404496911,1770220240311,-1021.65695057,0.000119,2]
[404496913,1770220240320,-2696.16885673,0.000119,2]
[404496914,1770220240331,-4756.36145038,0.000119,2]
[404496915,1770220240341,-432.35552109,0.00011904,2]
[404496916,1770220240354,-2341.13371784,0.00011928,2]
[404496917,1770220240368,-365.67430201,0.00011999,3]
[404496918,1770220240379,-166.66,0.00012037,2]
[404496919,1770220240389,-500.0,0.00012095,2]
[404496920,1770220240399,-3614.76504723,0.00012114,2]
[404496921,1770220240408,-16585.25963237,0.00012114,2]
[404496922,1770220240418,-166.66,0.00012208,2]
[404496923,1770220240428,-166.66,0.0001228,2]
[404496924,1770220240438,-193.34,0.00012303,2]
[404496925,1770220240448,-359.20137218,0.00012438,2]
[404496926,1770220240460,-500.0,0.00012439,2]
[404496927,1770220240470,-500.0,0.00012441,2]
[404496928,1770220240481,-416.0,0.000125,2]
[404496929,1770220240491,-8009.87,0.000125,2]
[404496930,1770220240502,-166.66,0.00012523,2]
[404496931,1770220240512,-3614.76504723,0.00012587,2]
[404496932,1770220240522,-16585.25963237,0.00012587,2]
[404496933,1770220240532,-166.66,0.00012598,2]
[404496934,1770220240542,-250.0,0.00012617,2]
[404496935,1770220240557,-300.0,0.00012617,2]
[404496936,1770220240568,-250.0,0.0001263,2]
[404496937,1770220240577,-1680.0,0.0001268,2]
[404496938,1770220240587,-195.0,0.00012681,2]
[404496939,1770220240598,-255.0,0.00012697,2]
[404496940,1770220240616,-250.0,0.00012706,2]
[404496941,1770220240626,-500.0,0.00012719,2]
[404496942,1770220240636,-166.66,0.00012766,2]
[404496943,1770220240646,-2341.13371781,0.00012923,2]
[404496944,1770220240656,-166.66,0.00012988,2]
[404496945,1770220240666,-500.0,0.00012989,2]
[404496946,1770220240677,-150.0,0.00013038,2]
[404496947,1770220240687,-3614.76504723,0.00013061,2]
[404496948,1770220240697,-16585.25963237,0.00013061,2]
[404496949,1770220240707,-500.0,0.00013068,2]
[404496950,1770220240717,-547.29,0.00013108,2]
[404496951,1770220240727,-285.76,0.00013131,2]
[404496952,1770220240737,-2111.40709231,0.00013357,2]
[404496953,1770220240746,-2111.40709231,0.00013357,2]
[404496954,1770220240756,-166.66,0.00013378,2]
[404496956,1770220240772,-3614.76504723,0.00013534,2]
[404496958,1770220240781,-16585.25963237,0.00013534,2]
[404496960,1770220240791,-150.0,0.00013541,2]
[404496962,1770220240801,-500.0,0.00013698,2]
[404496964,1770220240811,-500.0,0.00013698,2]
[404496965,1770220240820,-500.0,0.00013698,2]
[404496966,1770220240830,-500.0,0.00013698,2]
[404496967,1770220240840,-500.0,0.00013698,2]
[404496968,1770220240850,-500.0,0.00013698,2]
[404496969,1770220240862,-500.0,0.00013698,2]
[404496970,1770220240872,-500.0,0.00013698,2]
[404496971,1770220240882,-500.0,0.00013698,2]
[404496972,1770220240892,-500.0,0.00013698,2]
[404496973,1770220240902,-500.0,0.00013698,2]
[404496974,1770220240912,-500.0,0.00013698,2]
[404496975,1770220240922,-504.11677041,0.00013698,2]
[404496976,1770220240935,-500.0,0.00013698,2]
[404496977,1770220240945,-500.0,0.00013698,2]
[404496978,1770220240955,-500.0,0.00013698,2]
[404496979,1770220240965,-519.14978785,0.00013698,2]
[404496980,1770220240975,-500.0,0.00013698,2]
[404496981,1770220240984,-502.87563044,0.00013698,2]
[404496982,1770220240995,-500.0,0.00013698,2]
[404496983,1770220241009,-500.0,0.00013698,2]
[404496984,1770220241019,-500.0,0.00013698,2]
[404496985,1770220241028,-500.0,0.00013698,2]
[404496986,1770220241038,-500.0,0.00013698,2]
[404496987,1770220241049,-500.0,0.00013698,2]
[404496988,1770220241059,-500.0,0.00013698,2]
[404496989,1770220241068,-500.0,0.00013698,2]
[404496990,1770220241080,-477.29936804,0.00013698,2]
[404496991,1770220241089,-500.0,0.00013698,2]
[404496992,1770220241099,-503.69401691,0.00013698,2]
[404496993,1770220241111,-500.0,0.00013698,2]
[404496994,1770220241121,-500.0,0.00013698,2]
[404496995,1770220241130,-508.76475804,0.00013698,2]
[404496996,1770220241144,-500.0,0.00013698,2]
[404496997,1770220241153,-500.0,0.00013698,2]
[404496998,1770220241162,-500.0,0.00013698,2]
[404496999,1770220241172,-500.0,0.00013698,2]
[404497000,1770220241182,-500.0,0.00013698,2]
[404497001,1770220241191,-500.0,0.00013698,2]
[404497002,1770220241200,-500.0,0.00013698,2]
[404497003,1770220241211,-500.0,0.00013698,2]
[404497004,1770220241220,-500.0,0.00013698,2]
[404497005,1770220241231,-500.0,0.00013698,2]
[404497006,1770220241241,-500.0,0.00013698,2]
[404497007,1770220241251,-500.0,0.00013698,2]
[404497008,1770220241260,-500.0,0.00013698,2]
[404497009,1770220241270,-500.0,0.00013698,2]
[404497010,1770220241280,-500.0,0.00013698,2]
[404497011,1770220241290,-500.0,0.00013698,2]
[404497012,1770220241300,-500.0,0.00013698,2]
[404497013,1770220241310,-500.0,0.00013698,2]
[404497014,1770220241319,-500.0,0.00013698,2]
[404497015,1770220241331,-500.0,0.00013698,2]
[404497016,1770220241340,-500.0,0.00013698,2]
[404497017,1770220241353,-500.0,0.00013698,2]
[404497018,1770220241363,-500.0,0.00013698,2]
[404497019,1770220241372,-500.0,0.00013698,2]
[404497020,1770220241381,-353.03533501,0.00013698,2]
[404497021,1770220241391,-500.0,0.00013698,2]
[404497022,1770220241401,-500.0,0.00013698,2]
[404497023,1770220241411,-500.0,0.00013698,2]
[404497024,1770220241420,-500.0,0.00013698,2]
[404497025,1770220241430,-500.0,0.00013698,2]
[404497026,1770220241440,-499.73386374,0.00013698,2]
[404497027,1770220241450,-500.0,0.00013698,2]
[404497028,1770220241460,-500.0,0.00013698,2]
[404497029,1770220241470,-500.0,0.00013698,2]
[404497030,1770220241479,-500.0,0.00013698,2]
[404497031,1770220241489,-500.0,0.00013698,2]
[404497032,1770220241499,-500.0,0.00013698,2]
[404497033,1770220241509,-326.5559361,0.00013698,2]
[404497034,1770220241519,-500.0,0.00013698,2]
[404497035,1770220241531,-500.0,0.00013698,2]
[404497036,1770220241541,-500.0,0.00013698,2]
[404497037,1770220241550,-587.5541255,0.00013698,2]
[404497038,1770220241560,-500.0,0.00013698,2]
[404497039,1770220241571,-523.26417397,0.00013698,2]
[404497040,1770220241581,-773.56,0.00013699,2]
[404497041,1770220241590,-166.66,0.00013768,2]
[404497042,1770220241600,-433.0,0.00013859,2]
[404497043,1770220241611,-2341.13371781,0.00013919,2]
[404497044,1770220241620,-2351.0,0.00013948,2]
[404497045,1770220241630,-773.56,0.00013973,2]
[404497046,1770220241640,-158.5,0.00014,2]
[404497047,1770220241649,-500.0,0.00014,2]
[404497048,1770220241659,-3614.76504723,0.00014007,2]
[404497049,1770220241669,-16585.25963237,0.00014007,2]
[404497050,1770220241678,-500.0,0.00014027,2]
[404497051,1770220241688,-150.0,0.00014027,2]
[404497052,1770220241698,-500.0,0.00014027,2]
[404497053,1770220241708,-500.0,0.00014027,2]
[404497054,1770220241718,-150.0,0.00014027,2]
[404497055,1770220241727,-150.0,0.00014027,2]
[404497056,1770220241736,-150.0,0.00014027,2]
[404497057,1770220241746,-500.0,0.00014027,2]
[404497058,1770220241755,-150.0,0.00014027,2]
[404497059,1770220241765,-818.0,0.00014027,2]
[404497060,1770220241774,-166.17842172,0.00014027,2]
[404497061,1770220241783,-500.0,0.00014027,2]
[404497062,1770220241792,-150.0,0.00014027,2]
[404497063,1770220241802,-500.0,0.00014027,2]
[404497064,1770220241812,-500.0,0.00014027,2]
[404497065,1770220241823,-138.49638656,0.00014027,2]
[404497066,1770220242479,-11.50361344,0.00014027,2]
[404497067,1770220242493,-150.0,0.00014027,2]
[404497068,1770220242503,-150.0,0.00014027,2]
[404497069,1770220242512,-150.0,0.00014027,2]
[404497070,1770220242522,-150.0,0.00014027,2]
[404497071,1770220242531,-2766.0,0.00014027,2]
[404497072,1770220242540,-154.11430393,0.00014027,2]
[404497073,1770220242549,-500.0,0.00014027,2]
[404497074,1770220242558,-500.0,0.00014027,2]
[404497075,1770220242568,-150.0,0.00014027,2]
[404497076,1770220242577,-250.0,0.00014027,2]
[404497077,1770220242587,-500.0,0.00014082,2]
[404497078,1770220242597,-150.54146631,0.00014082,2]
[404497079,1770220242610,-500.0,0.00014082,2]
[404497080,1770220242619,-344.83917611,0.00014082,2]
[404497081,1770220242657,-155.86007888,0.00014082,2]
[404497082,1770220242666,-150.0,0.00014082,2]
[404497083,1770220242676,-150.0,0.00014082,2]
[404497084,1770220242686,-500.0,0.00014082,2]
[404497085,1770220242696,-150.0,0.00014082,2]
[404497086,1770220242706,-150.0,0.00014082,2]
[404497087,1770220242715,-818.0,0.00014082,2]
[404497088,1770220242725,-500.0,0.00014082,2]
[404497089,1770220242735,-150.0,0.00014082,2]
[404497090,1770220242744,-500.0,0.00014082,2]
[404497091,1770220242753,-500.0,0.00014082,2]
[404497092,1770220242763,-150.0,0.00014082,2]
[404497093,1770220242772,-150.0,0.00014082,2]
[404497094,1770220242782,-150.0,0.00014082,2]
[404497095,1770220242791,-2766.0,0.00014082,2]
[404497096,1770220242801,-500.0,0.00014082,2]
[404497097,1770220242811,-500.0,0.00014082,2]
[404497098,1770220242820,-150.0,0.00014082,2]
[404497099,1770220242830,-500.0,0.000141,2]
[404497100,1770220242839,-869.18,0.00014131,2]
[404497101,1770220242849,-500.0,0.00014137,2]
[404497102,1770220242860,-513.8015256,0.00014137,2]
[404497103,1770220242870,-215.60722138,0.00014137,2]
[404497104,1770220242883,-150.0,0.00014137,2]
[404497105,1770220242892,-500.0,0.00014137,2]
[404497106,1770220242902,-150.0,0.00014137,2]
[404497107,1770220242911,-155.36591009,0.00014137,2]
[404497108,1770220242922,-818.0,0.00014137,2]
[404497109,1770220242931,-500.0,0.00014137,2]
[404497110,1770220242941,-418.0,0.00014137,2]
[404497111,1770220242950,-150.0,0.00014137,2]
[404497112,1770220242960,-150.0,0.00014137,2]
[404497113,1770220242970,-150.0,0.00014137,2]
[404497114,1770220242979,-2766.0,0.00014137,2]
[404497115,1770220242989,-500.0,0.00014137,2]
[404497116,1770220243001,-500.0,0.00014137,2]
[404497117,1770220243011,-150.0,0.00014137,2]
[404497118,1770220243020,-215.61991293,0.00014191,2]
[404497119,1770220243030,-235.58915604,0.00014191,2]
[404497120,1770220243040,-500.0,0.00014191,2]
[404497121,1770220243050,-150.0,0.00014191,2]
[404497122,1770220243059,-818.0,0.00014191,2]
[404497123,1770220243068,-150.0,0.00014191,2]
[404497124,1770220243079,-500.0,0.00014191,2]
[404497125,1770220243089,-150.0,0.00014191,2]
[404497126,1770220243098,-150.0,0.00014191,2]
[404497127,1770220243110,-2766.0,0.00014191,2]
[404497128,1770220243120,-500.0,0.00014191,2]
[404497129,1770220243130,-200.0,0.00014191,2]
[404497130,1770220243139,-1000.0,0.00014228,2]
[404497131,1770220243148,-150.0,0.00014246,2]
[404497132,1770220243158,-158.43558998,0.00014246,2]
[404497133,1770220243167,-818.0,0.00014246,2]
[404497134,1770220243176,-150.0,0.00014246,2]
[404497135,1770220243185,-332.0,0.00014246,2]
[404497136,1770220243195,-150.0,0.00014246,2]
[404497137,1770220243204,-150.0,0.00014246,2]
[404497138,1770220243214,-2670.5406051,0.00014246,2]
[404497139,1770220243226,-95.4593949,0.00014246,2]
[404497140,1770220243235,-363.41374374,0.00014246,2]
[404497141,1770220243246,-136.58625626,0.00014246,2]